fUSD/lending_fUSD_20240528
["ID","MTS","AMOUNT","RATE_DAILY","PERIOD"]
[328117850,1716891032467,-150.0,0.00012885,2]
[328117851,1716891032477,-150.0,0.00012886,2]
[328117852,1716891032486,-150.0,0.00012886,2]
[328117853,1716891032496,-150.0,0.00012889,2]
[328117854,1716891032506,-150.0,0.0001289,2]
[328117855,1716891032515,-500.0,0.00012896,2]
[328117856,1716891032525,-150.0,0.00012897,2]
[328117857,1716891032534,-150.0,0.00012898,2]
[328117858,1716891032544,-2143.22224743,0.000129,2]
[328117859,1716891032553,-1679.99615938,0.000129,2]
[328117860,1716891032562,-4411.225,0.000129,2]
[328117861,1716891032571,-8717.30717714,0.000129,2]
[328117862,1716891032581,-325.65837154,0.000129,2]
[328117863,1716891032590,-246.84759878,0.000129,2]
[328117864,1716891032599,-1354.79680529,0.000129,2]
[328117865,1716891032609,-150.0,0.00012901,2]
[328117866,1716891032618,-150.0,0.00012905,2]
[328117867,1716891032627,-150.0,0.0001291,2]
[328117868,1716891032637,-150.0,0.00012911,2]
[328117869,1716891032647,-150.0,0.00012911,2]
[328117870,1716891032656,-150.0,0.0001292,2]
[328117871,1716891032666,-150.0,0.00012921,2]
[328117872,1716891032675,-150.0,0.00012923,2]
[328117873,1716891032685,-150.0,0.00012925,2]
[328117874,1716891032694,-150.0,0.00012926,2]
[328117875,1716891032705,-150.0,0.00012938,2]
[328117876,1716891032716,-150.0,0.00012944,2]
[328117877,1716891032725,-150.0,0.00012953,2]
[328117878,1716891032734,-150.0,0.00012967,2]
[328117879,1716891032744,-150.0,0.00012967,2]
[328117880,1716891032754,-150.0,0.00012973,2]
[328117881,1716891032763,-150.0,0.00012976,2]
[328117882,1716891032773,-150.0,0.00012977,2]
[328117883,1716891032784,-150.0,0.00012977,2]
[328117884,1716891032794,-150.0,0.00012978,2]
[328117885,1716891032803,-150.0,0.0001298,2]
[328117886,1716891032813,-150.0,0.00012982,2]
[328117887,1716891032822,-150.0,0.00012985,2]
[328117888,1716891032832,-3070.010722,0.00012986,2]
[328117889,1716891032842,-3698.8190144,0.00012986,2]
[328117890,1716891032852,-150.0,0.00012988,2]
[328117891,1716891032865,-150.0,0.00012988,2]
[328117892,1716891032874,-150.0,0.00012988,2]
[328117893,1716891032884,-487.363353,0.0001299,2]
[328117894,1716891032894,-469.07225535,0.0001299,2]
[328117895,1716891032903,-474.5758712,0.00012991,2]
[328117896,1716891032912,-461.7883895,0.00012991,2]
[328117897,1716891032922,-3523.2828418,0.00012991,2]
[328117898,1716891032931,-3976.5549615,0.00012991,2]
[328117899,1716891032941,-4244.9316137,0.00012991,2]
[328117900,1716891032951,-4791.044213,0.00012991,2]
[328117901,1716891032960,-373.39156659,0.00012992,2]
[328117902,1716891032969,-150.0,0.00012995,2]
[328117903,1716891032979,-49053.58071498,0.00012999,2]
[328117904,1716891032991,-676.21321832,0.00012999,2]
[328117905,1716891033002,-20542.05482282,0.00012999,2]
[328117906,1716891033014,-18884.79500986,0.00012999,2]
[328117907,1716891033025,-935.99632994,0.00012999,2]
[328117908,1716891033041,-533.72427323,0.00012999,2]
[328117909,1716891033052,-463.05,0.00012999,2]
[328117910,1716891033063,-703.37788318,0.00012999,2]
[328117911,1716891033074,-421.94944597,0.00012999,2]
[328117912,1716891033086,-6978.27209133,0.00012999,2]
[328117913,1716891033098,-291.826501,0.00012999,2]
[328117914,1716891033109,-5883.35086424,0.00012999,2]
[328117917,1716891037553,-2298.9635953,0.00012999,2]
[328117918,1716891037565,-2562.61030742,0.00012999,2]
[328117919,1716891037574,-291123.62090297,0.00013,2]
[328117920,1716891037586,-567.44870183,0.00013,2]
[328117921,1716891037597,-1599.50354593,0.00013,2]
[328117922,1716891037608,-804.88887239,0.00013,2]
[328117923,1716891037694,-1425.94447234,0.00013,2]
[328117924,1716891037707,-1220.20775906,0.00013,2]
[328117925,1716891037720,-406.46916604,0.00013,2]
[328117926,1716891037743,-6853.34829921,0.00013,2]
[328117927,1716891037838,-16934.04267543,0.00013,2]
[328117929,1716891037851,-428.61941707,0.00013,2]
[328117930,1716891037863,-10000.0483632,0.00013,2]
[328117931,1716891037874,-692.79472096,0.00013,2]
[328117936,1716891040472,-405.50991921,0.00012899,2]
[328117938,1716891041456,-451.9375,0.00012899,2]
[328117939,1716891041468,-24.47338079,0.00012899,2]
[328117940,1716891041477,-8191.48569822,0.00013,2]
[328117941,1716891041488,-1725.76796502,0.00013,2]
[328117942,1716891041499,-1805.26599995,0.00013,2]
[328117943,1716891041620,-542.84209629,0.00013,2]
[328117944,1716891041632,-10688.81959804,0.00013,2]
[328117945,1716891041643,-746.54000001,0.00013,2]
[328117946,1716891041654,-22868.09982744,0.00013,2]
[328117953,1716891042698,-1067.81353758,0.00013,2]
[328117954,1716891042714,-455.24917089,0.00013,2]
[328117955,1716891042860,-3608.9701709,0.00013,2]
[328117956,1716891042873,-2980.63278696,0.00013,2]
[328117957,1716891042885,-74290.7954407,0.00013,2]
[328117958,1716891043010,-5976.31321052,0.00013,2]
[328117959,1716891043022,-9214.47023561,0.00013,2]
[328117960,1716891043180,-848.40015,0.00013,2]
[328118187,1716891045627,-233.76258655,0.00013,2]
[328118189,1716891045638,-959.66047797,0.00013,2]
[328118191,1716891045649,-694.56952203,0.00013,2]
[328118204,1716891045771,-7049.54755171,0.00013,2]
[328118206,1716891045782,-1499.90008,0.00013,2]
[328118208,1716891045797,-769.02819339,0.00013,2]
[328118223,1716891045933,-255.637,0.00013,2]
[328118429,1716891048140,592.38,0.00010959,2]
[328118491,1716891589862,516.09,9.821e-05,2]
[328118494,1716891752972,250.0,0.00011495,2]
[328118495,1716891766277,1632.85,0.00011491,2]
[328118496,1716891791000,1833.31,0.00011491,2]
[328118497,1716891877517,250.0,0.0001147,2]
[328118498,1716891940526,445.23,0.00011479,2]
[328118499,1716891967862,800.0,0.00011493,2]
[328118500,1716892009513,2694.05,0.00011496,2]
[328118502,1716892059956,23880.0,0.00011411,2]
[328118503,1716892077237,2434.69,0.0001143,2]
[328118504,1716892097461,1500.0,0.00011443,2]
[328118505,1716892111740,2333.98,0.00011443,2]
[328118506,1716892141691,150.0,0.00011421,2]
[328118507,1716892143863,1317.99,0.00011451,2]
[328118508,1716892153005,490.28,9.549e-05,2]
[328118511,1716892162463,1318.76,0.00011441,2]
[328118512,1716892173088,1852.42,0.00011494,2]
[328118525,1716892232127,-940.49566822,0.00011512,2]
[328118526,1716892232137,-2318.96,0.00011513,2]
[328118527,1716892232147,-1861.67,0.00011534,2]
[328118528,1716892232157,-250.0,0.0001156,2]
[328118529,1716892232167,-158.02,0.00011598,2]
[328118530,1716892232177,-251.37928582,0.00011699,2]
[328118531,1716892232186,-158.02,0.00011719,2]
[328118532,1716892232196,-2169.69,0.00011785,2]
[328118533,1716892232207,-490.28,0.00011813,2]
[328118534,1716892232218,-150.99,0.00011834,2]
[328118535,1716892232227,-158.02,0.0001184,2]
[328118536,1716892232237,-150.0,0.0001194,2]
[328118537,1716892232247,-158.02,0.00011961,2]
[328118538,1716892232256,-150.99,0.00012036,2]
[328118539,1716892232266,-150.0,0.00012054,2]
[328118540,1716892232276,-583.9,0.00012055,2]
[328118541,1716892232286,-158.02,0.00012082,2]
[328118542,1716892232297,-150.0,0.00012104,2]
[328118543,1716892232306,-200.0,0.00012142,2]
[328118544,1716892232316,-158.02,0.00012203,2]
[328118545,1716892232325,-150.0,0.00012711,2]
[328118546,1716892232335,-150.0,0.00012757,2]
[328118547,1716892232344,-173.34,0.00012804,2]
[328118548,1716892232354,-241.48034154,0.00012869,2]
[328118549,1716892232363,-500.0,0.00012896,2]
[328118550,1716892232373,-6815.2959,0.00012899,2]
[328118551,1716892232383,-248.1438063,0.000129,2]
[328118552,1716892232392,-13223.9707,0.000129,2]
[328118553,1716892232402,-2138.91325347,0.000129,2]
[328118554,1716892232411,-1000.0,0.000129,2]
[328118555,1716892232421,-261.19852924,0.000129,2]
[328118556,1716892232430,-1219.31712477,0.000129,2]
[328118557,1716892232440,-326.31399432,0.000129,2]
[328118558,1716892232449,-579.52489556,0.000129,2]
[328118559,1716892232463,-876.59692464,0.000129,2]
[328118560,1716892232472,-800.0,0.0001293,2]
[328118561,1716892232483,-185.1725993,0.0001299,2]
[328118562,1716892232493,-2295.6517244,0.0001299,2]
[328118563,1716892232503,-197.60468252,0.0001299,2]
[328118564,1716892232513,-1511.3192027,0.0001299,2]
[328118565,1716892232522,-185.1725993,0.00012991,2]
[328118566,1716892232532,-185.1725993,0.00012991,2]
[328118567,1716892232543,-2554.0449169,0.00012991,2]
[328118568,1716892232553,-2812.4381095,0.00012991,2]
[328118569,1716892232563,-1883.4113619,0.00012991,2]
[328118570,1716892232572,-2255.503521,0.00012991,2]
[328118571,1716892232583,-722.63058428,0.00012999,2]
[328118572,1716892232593,-460.54321371,0.00012999,2]
[328118573,1716892232602,-259.347326,0.00012999,2]
[328118574,1716892232612,-3793.91728531,0.00013,2]
[328118575,1716892234357,-438.97877864,0.00013,2]
[328118576,1716892234654,-26102.81563661,0.00013,2]
[328118577,1716892234667,-3001.13681457,0.00013,2]
[328118578,1716892234678,-5525.36890909,0.00013,2]
[328118579,1716892234689,-1647.10744656,0.00013,2]
[328118590,1716892237812,-710.733,0.00013,2]
[328118595,1716892238006,-15230.10932913,0.00013,2]
[328118596,1716892238018,-1917.73287074,0.00013,2]
[328118597,1716892238030,-3701.61891719,0.00013,2]
[328118598,1716892238212,-291123.62090297,0.00013,2]
[328118599,1716892238227,-18358.12304653,0.00013,2]
[328118609,1716892241027,-50000.0,0.00013,2]
[328118612,1716892241039,-2865.59711266,0.00013,2]
[328118613,1716892242222,-523.392,0.00013,2]
[328118614,1716892242424,-13771.69999996,0.00013,2]
[328118770,1716892244744,-2969.04349896,0.00013,2]
[328118771,1716892244756,-2056.2,0.00013,2]
[328118772,1716892244767,-2584.4344106,0.00013,2]
[328118773,1716892244779,-11853.870273,0.00013,2]
[328118774,1716892244791,-259.111916,0.00013,2]
[328118775,1716892245292,-24040.45,0.00013,2]
[328118776,1716892245306,-880.21195323,0.00013,2]
[328118777,1716892245319,-1529.99773625,0.00013,2]
[328118781,1716892246356,-672.00837,0.00012999,2]
[328118782,1716892246366,-16519.70862999,0.00013,2]
[328118783,1716892246377,-982.44431504,0.00013,2]
[328118784,1716892246388,-1953.26482523,0.00013,2]
[328118790,1716892268482,600.0,0.000123,4]
[328118791,1716892270574,1300.0,0.000124,4]
[328118792,1716892272665,2000.0,0.000125,4]
[328118793,1716892274763,2700.0,0.000126,4]
[328118794,1716892276887,3400.0,0.000127,4]
[328118795,1716892279003,600.0,0.000128,4]
[328118796,1716892281091,600.0,0.000129,4]
[328118814,1716892736324,463.25,0.00010742,2]
[328118816,1716892785392,7500.0,0.0003,120]
[328118827,1716893193558,470.38,0.00010164,2]
[328118837,1716893269990,20237.04940009,0.00010164,2]
[328118838,1716893279391,19746.92863178,0.00010164,2]
[328118839,1716893281719,2665.02147645,0.00010164,2]
[328118840,1716893295389,385.35375056,0.00010164,2]
[328118844,1716893432267,-250.0,0.00011919,2]
[328118846,1716893432278,-782.79118894,0.00011969,2]
[328118848,1716893432288,-14310.0389,0.0001197,2]
[328118849,1716893432298,-1371.38,0.00012054,2]
[328118851,1716893432309,-150.0,0.00012069,2]
[328118853,1716893432319,-23876.17,0.0001207,2]
[328118855,1716893432329,-191.34,0.00012081,2]
[328118856,1716893432338,-163.46,0.00012107,2]
[328118857,1716893432348,-6030.79,0.00012112,2]
[328118858,1716893432358,-1000.0,0.00012132,2]
[328118859,1716893432368,-250.0,0.00012166,2]
[328118860,1716893432378,-877.98,0.0001218,2]
[328118861,1716893432388,-499.99,0.0001218,2]
[328118862,1716893432398,-470.38,0.00012428,2]
[328118863,1716893432408,-1000.0,0.000127,2]
[328118864,1716893432418,-150.0,0.00012759,2]
[328118865,1716893432429,-165.45,0.00012801,2]
[328118866,1716893432439,-150.0,0.00012813,2]
[328118867,1716893432450,-1298.78853938,0.00012869,2]
[328118868,1716893432459,-1960.57584,0.0001287,2]
[328118869,1716893432470,-500.0,0.00012896,2]
[328118870,1716893432480,-4825.2313,0.000129,2]
[328118871,1716893432490,-1960.67048232,0.000129,2]
[328118872,1716893432500,-594.9124,0.000129,2]
[328118873,1716893432509,-1097.38541232,0.000129,2]
[328118874,1716893432519,-1753.19384924,0.000129,2]
[328118875,1716893432720,-164.56506584,0.000129,2]
[328118876,1716893432757,-326.31399432,0.000129,2]
[328118877,1716893432767,-1796.7824597,0.00012985,2]
[328118878,1716893432776,-555.5177979,0.00012985,2]
[328118879,1716893432786,-1618.9315269,0.00012985,2]
[328118880,1716893432795,-1743.9143748,0.00012991,2]
[328118881,1716893432804,-1691.0462898,0.00012991,2]
[328118882,1716893432817,-1571.296484,0.00012991,2]
[328118883,1716893432827,-1523.6614411,0.00012991,2]
[328118884,1716893432836,-3700.81825935,0.00012994,2]
[328118885,1716893432845,-328.38605855,0.00012998,2]
[328118886,1716893432854,-321.75766818,0.00012999,2]
[328118887,1716893432864,-524.50918938,0.00012999,2]
[328118888,1716893432873,-781.55564957,0.00012999,2]
[328118889,1716893432882,-150403.11582834,0.00013,2]
[328118890,1716893432894,-2853.5939566,0.00013,2]
[328118891,1716893432905,-3188.38584379,0.00013,2]
[328118892,1716893432916,-4050.21560599,0.00013,2]
[328118893,1716893432927,-10000.272,0.00013,2]
[328118894,1716893432938,-6330.6000023,0.00013,2]
[328118895,1716893432949,-2815.9400042,0.00013,2]
[328118896,1716893432960,-3373.75,0.00013,2]
[328118897,1716893432972,-684.71908266,0.00013,2]
[328118898,1716893432997,-308.807424,0.00013,2]
[328118899,1716893433009,-1910.03129286,0.00013,2]
[328118900,1716893433020,-269.0000005,0.00013,2]
[328118901,1716893433032,-852.94314479,0.00013,2]
[328118902,1716893433043,-889.4613692,0.00013,2]
[328118903,1716893433054,-833.36001832,0.00013,2]
[328118904,1716893433068,-537.12016184,0.00013,2]
[328118905,1716893433079,-299.66504719,0.00013,2]
[328118906,1716893433090,-25161.62938034,0.00013,2]
[328118907,1716893433101,-657.25,0.00013,2]
[328118911,1716893438408,-3615.08252238,0.00011969,2]
[328118912,1716893438418,-4740.37922862,0.00013,2]
[328118913,1716893438433,-37616.033428,0.00013,2]
[328118914,1716893438445,-886070.22084537,0.00013,2]
[328118915,1716893438457,-1037.20572388,0.00013,2]
[328118916,1716893438469,-3412.9857706,0.00013,2]
[328118917,1716893438480,-282.54297102,0.00013,2]
[328118918,1716893438492,-362.26956143,0.00013,2]
[328118919,1716893438505,-493.27602121,0.00013,2]
[328118920,1716893438517,-1490.7756,0.00013,2]
[328118921,1716893438776,-5712.90484971,0.00013,2]
[328118922,1716893439954,-1676.32000115,0.00013,2]
[328118923,1716893439967,-1229.7413409,0.00013,2]
[328118930,1716893441259,-1954.10039998,0.00013,2]
[328118931,1716893441271,-3399.587,0.00013,2]
[328118932,1716893441283,-1089.50498701,0.00013,2]
[328118933,1716893442361,-979412.77824762,0.00013,2]
[328118936,1716893442373,-348.954301,0.00013,2]
[328118937,1716893442388,-568.37329392,0.00013,2]
[328118946,1716893443263,-9284.01311117,0.00013,2]
[328118948,1716893443275,-302.765,0.00013,2]
[328118949,1716893443287,-21466.56299741,0.00013,2]
[328118950,1716893443299,-471.441,0.00013,2]
[328118955,1716893446419,-782.79118894,0.00012999,2]
[328118956,1716893446429,-6511.12225488,0.00013,2]
[328118957,1716893446749,-620.6272043,0.000129,2]
[328118958,1716893446759,-279.37961617,0.00013,2]
[328118959,1716893446770,-1135.0,0.00013,2]
[328118979,1716894293152,423.34,0.00010103,2]
[328118980,1716894331340,-782.79118894,0.00012072,2]
[328118981,1716894331362,-320.0,0.00012073,2]
[328118982,1716894331385,-4897.20881106,0.00012075,2]
[328118983,1716894337381,946.34025897,0.00010103,2]
[328118984,1716894341893,946.34025897,0.00010103,2]
[328118986,1716894379890,946.34025897,0.00010103,2]
[328118987,1716894395912,946.34025897,0.00010103,2]
[328118989,1716894416085,946.34025897,0.00010103,2]
[328118990,1716894437889,946.34025897,0.00010103,2]
[328118992,1716894455880,946.34025897,0.00010103,2]
[328118994,1716894475891,708.79888721,0.00010103,2]
[328119006,1716894600342,180.21029515,0.00010103,2]
[328119008,1716894604975,199.61,9.422e-05,2]
[328119011,1716894606703,8993.43167449,0.00010103,2]
[328119016,1716894632621,-782.79118894,0.00011773,2]
[328119017,1716894632631,-3884.15325136,0.00011774,2]
[328119018,1716894632642,-1455.34674864,0.00011774,2]
[328119019,1716894632652,-150.0,0.00011811,2]
[328119020,1716894632661,-1649.14,0.00011835,2]
[328119021,1716894632670,-250.0,0.00011935,2]
[328119022,1716894632679,-200.0,0.00011969,2]
[328119023,1716894632688,-180.22162938,0.00011974,2]
[328119024,1716894632698,-1625.4432952,0.00012074,2]
[328119025,1716894632710,-165.43417787,0.00012074,2]
[328119026,1716894632720,-3693.73768549,0.00012075,2]
[328119028,1716894632873,-15299.05350345,0.00012075,2]
[328119029,1716894632883,-1543.42,0.00012082,2]
[328119030,1716894632893,-175.59,0.00012082,2]
[328119031,1716894632902,-164.06481566,0.00012256,2]
[328119032,1716894632911,-1929.21,0.00012357,2]
[328119033,1716894632921,-423.34,0.00012367,2]
[328119034,1716894633132,-209.91,0.00012449,2]
[328119035,1716894633153,-150.0,0.00012523,2]
[328119036,1716894633162,-150.0,0.00012547,2]
[328119037,1716894633174,-150.0,0.00012629,2]
[328119038,1716894633185,-150.0,0.00012631,2]
[328119039,1716894633195,-3093.90713873,0.00012724,2]
[328119040,1716894633204,-12372.78263065,0.00012731,2]
[328119041,1716894633213,-1633.8132,0.0001287,2]
[328119042,1716894633222,-2095.77095051,0.000129,2]
[328119052,1716894639509,-658.999999,0.000129,2]
[328119053,1716894639521,-988.20655049,0.000129,2]
[328119054,1716894639531,-1797.28127546,0.000129,2]
[328119055,1716894639541,-1203.34281441,0.000129,2]
[328119056,1716894639551,-2042.07620458,0.000129,2]
[328119057,1716894639560,-1836.5496789,0.00012989,2]
[328119058,1716894639570,-151.41,0.0001299,2]
[328119059,1716894639584,-1704.6701024,0.00012991,2]
[328119060,1716894639594,-1572.7905258,0.00012991,2]
[328119061,1716894639604,-1527.20049393,0.00012998,2]
[328119062,1716894639614,-1274.02294122,0.00012998,2]
[328119063,1716894639624,-268.55232379,0.00012998,2]
[328119064,1716894639636,-135.46031748,0.00012998,2]
[328119065,1716894639647,-4146.07087704,0.00012998,2]
[328119066,1716894639657,-155.0,0.00012999,2]
[328119067,1716894639669,-1063.62414582,0.00012999,3]
[328119068,1716894639679,-887148.34642508,0.00013,2]
[328119069,1716894639745,-12372.94289995,0.00013,2]
[328119071,1716894639758,-7563.25408996,0.00013,2]
[328119073,1716894639770,-319.8,0.00013,2]
[328119074,1716894639781,-14334.97424228,0.00013,2]
[328119075,1716894639793,-323.97031072,0.00013,2]
[328119076,1716894639804,-3646.45277639,0.00013,2]
[328119077,1716894639816,-48049.13999579,0.00013,2]
[328119113,1716894642165,-20000.0,0.00013,2]
[328119114,1716894642178,-671.80019193,0.00013,2]
[328119115,1716894642190,-1839.53485053,0.00013,2]
[328119116,1716894642202,-22719.89317067,0.00013,2]
[328119117,1716894642213,-2300.717797,0.00013,2]
[328119119,1716894642369,-6301.89943895,0.00013,2]
[328119121,1716894642380,-8133.23729212,0.00013,2]
[328119123,1716894642390,-299.07538621,0.00013,2]
[328119125,1716894642399,-26383.51090496,0.00013,2]
[328119127,1716894642410,-1212.14956,0.00013,2]
[328119134,1716894642465,-504.36232548,0.00013,2]
[328119136,1716894642476,-5139.69100175,0.00013,2]
[328119138,1716894642487,-16494.24955127,0.00013,2]
[328119140,1716894642498,-218191.98161182,0.00013,2]
[328119143,1716894642510,-283.88390395,0.00013,2]
[328119145,1716894642521,-439.54636968,0.00013,2]
[328119181,1716894643590,-1028.4,0.00013,2]
[328119194,1716894643716,-1690.65969151,0.00013,2]
[328119195,1716894643728,-1371.04447154,0.00013,2]
[328119196,1716894643932,-665.84359141,0.00013,2]
[328119227,1716894644621,-10970.52681283,0.00013,2]
[328119229,1716894644639,-1444.32035245,0.00013,2]
[328119236,1716894646590,-18380.95209496,0.00013,2]
[328119237,1716894646602,-6902.0,0.00013,2]
[328119239,1716894646818,-5570.45453968,0.00013,2]
[328119240,1716894718909,900.0,0.000123,4]
[328119241,1716894721027,1800.0,0.000124,4]
[328119242,1716894723129,2700.0,0.000125,4]
[328119243,1716894725224,3600.0,0.000126,4]
[328119244,1716894727340,4500.0,0.000127,4]
[328119245,1716894729489,900.0,0.000128,4]
[328119246,1716894731619,900.0,0.000129,4]
[328119247,1716894785557,461.88,0.00010466,2]
[328119250,1716895274053,438.78,9.997e-05,2]
[328119251,1716895321914,387.0149627,0.0001,2]
[328119252,1716895332757,65691.10708878,9.997e-05,2]
[328119254,1716895436099,-782.79118894,0.00011563,2]
[328119255,1716895436126,-1666.67,0.00011564,2]
[328119256,1716895436151,-4282.56969523,0.00011573,2]
[328119257,1716895436175,-2225.38289457,0.00011573,2]
[328119258,1716895436198,-1173.16786747,0.00011581,2]
[328119259,1716895436224,-164.06481566,0.00011589,2]
[328119260,1716895436255,-750.94633531,0.00011698,2]
[328119261,1716895436279,-200.0,0.00011923,2]
[328119262,1716895436303,-150.0,0.00011939,2]
[328119263,1716895436333,-19166.40720282,0.0001194,2]
[328119264,1716895453363,-1100.0,0.0001194,2]
[328119265,1716895593708,2422.8058,0.00011473,2]
[328119270,1716895812421,416.84,9.579e-05,2]
[328119271,1716895831764,-782.79118894,0.00011592,2]
[328119272,1716895831775,-687.1486291,0.00011593,2]
[328119273,1716895831784,-330.06018196,0.00011598,2]
[328119274,1716895831797,-1290.90309334,0.00011598,2]
[328119276,1716895831809,-1992.6267247,0.00011598,2]
[328119277,1716895831818,-534.7115673,0.00011651,2]
[328119278,1716895831828,-250.0,0.00011653,2]
[328119279,1716895831837,-416.84,0.00011843,2]
[328119280,1716895831847,-212.53,0.00011885,2]
[328119281,1716895831858,-212.53,0.00011917,2]
[328119282,1716895831868,-1000.0,0.00011943,2]
[328119283,1716895832057,-212.53,0.0001195,2]
[328119284,1716895832067,-499.99,0.0001195,2]
[328119285,1716895832077,-212.53,0.00011983,2]
[328119286,1716895832087,-3841.17,0.00011983,2]
[328119287,1716895832096,-3602.86765918,0.00011983,2]
[328119288,1716895832108,-826.29867666,0.00011983,2]
[328119289,1716895832121,-341.48088377,0.00011983,2]
[328119290,1716895832132,-690.20000005,0.00011983,2]
[328119291,1716895832144,-6506.20278034,0.00011983,2]
[328119292,1716895832153,-1012.38,0.00011983,2]
[328119293,1716895832162,-2723.70678265,0.00011983,2]
[328119294,1716895832301,-454.25461509,0.00011983,2]
[328119295,1716895832312,-1015.83173565,0.00011983,2]
[328119298,1716895832324,-2959.18686661,0.00011983,2]
[328119301,1716895832337,-212.53,0.00012015,2]
[328119304,1716895832346,-212.53,0.00012048,2]
[328119305,1716895832355,-212.53,0.0001208,2]
[328119306,1716895832365,-150.99,0.00012102,2]
[328119307,1716895832375,-150.99,0.00012102,2]
[328119308,1716895832384,-212.53,0.00012113,2]
[328119309,1716895832394,-212.53,0.00012146,2]
[328119310,1716895832403,-212.53,0.00012178,2]
[328119311,1716895832414,-212.53,0.00012211,2]
[328119312,1716895832424,-212.53,0.00012243,2]
[328119313,1716895832433,-1299.42409849,0.00012253,2]
[328119314,1716895832443,-212.53,0.00012276,2]
[328119315,1716895832452,-212.53,0.00012309,2]
[328119316,1716895832461,-212.53,0.00012341,2]
[328119317,1716895832471,-212.53,0.00012374,2]
[328119318,1716895832480,-212.53,0.00012406,2]
[328119319,1716895832490,-212.53,0.00012439,2]
[328119320,1716895832499,-212.53,0.00012472,2]
[328119321,1716895832508,-212.53,0.00012504,2]
[328119322,1716895832518,-161.67617912,0.000128,2]
[328119323,1716895832527,-317.93857319,0.000128,2]
[328119324,1716895832536,-2173.7898,0.000128,2]
[328119325,1716895832546,-177.22,0.0001282,2]
[328119326,1716895832555,-161.67617909,0.00012833,2]
[328119327,1716895832565,-177.22,0.00012836,2]
[328119328,1716895832574,-177.22,0.00012852,2]
[328119329,1716895832583,-161.67617909,0.00012867,2]
[328119330,1716895832592,-206.55184202,0.00012868,2]
[328119331,1716895832602,-177.22,0.00012869,2]
[328119332,1716895832612,-177.22,0.00012885,2]
[328119333,1716895832623,-200.0,0.00012895,2]
[328119334,1716895832632,-200.0,0.00012896,2]
[328119335,1716895832641,-500.0,0.00012896,2]
[328119336,1716895832650,-2049.4121412,0.00012898,2]
[328119337,1716895832659,-1278.32023457,0.00012898,2]
[328119338,1716895832668,-10952.16001412,0.00012898,2]
[328119339,1716895832677,-155.0,0.00012898,2]
[328119340,1716895832687,-529.6006328,0.00012898,2]
[328119341,1716895832696,-1837.86858405,0.00012899,2]
[328119342,1716895832706,-500.0,0.000129,2]
[328119343,1716895832715,-5450.1524,0.000129,2]
[328119344,1716895832725,-245000.0,0.000129,2]
[328119345,1716895832734,-8970.8739,0.000129,2]
[328119346,1716895832745,-100000.0,0.000129,2]
[328119347,1716895832754,-174.15984609,0.000129,2]
[328119348,1716895832763,-1848.3676154,0.000129,2]
[328119349,1716895832774,-161.67617909,0.000129,2]
[328119350,1716895832783,-222.51828606,0.000129,2]
[328119351,1716895832793,-4600.7831197,0.00012986,2]
[328119352,1716895832803,-17540.1891346,0.00012989,2]
[328119353,1716895832813,-638.0760557,0.00012989,2]
[328119354,1716895832822,-373.8840724,0.00012989,2]
[328119355,1716895832831,-151.24,0.0001299,2]
[328119356,1716895832841,-18143.6569797,0.00012991,2]
[328119357,1716895832850,-18747.1248248,0.00012991,2]
[328119358,1716895832859,-660.0289765,0.00012991,2]
[328119359,1716895832870,-681.9818973,0.00012991,2]
[328119360,1716895832880,-408.0121297,0.00012991,2]
[328119361,1716895832889,-442.140187,0.00012991,2]
[328119362,1716895832898,-410.08555038,0.00012998,2]
[328119363,1716895832908,-1235.32018218,0.00012998,2]